fUST/lending_fUST_20240620
["ID","MTS","AMOUNT","RATE_DAILY","PERIOD"]
[329924825,1718836259528,-517.0,0.00027272,10]
[329924826,1718836259538,-517.0,0.00027272,10]
[329924827,1718836259546,-512.22775179,0.00027272,10]
[329924828,1718836259556,-517.0,0.00027272,10]
[329924829,1718836259565,-151.0,0.00027272,30]
[329924830,1718836259574,-227.1,0.00027272,120]
[329924831,1718836259583,-3025.53345853,0.00027272,30]
[329924832,1718836259592,-184.08379349,0.00027293,2]
[329924833,1718836259602,-158.68247426,0.00027303,2]
[329924834,1718836259616,-151.28629382,0.00027384,2]
[329924835,1718836259626,-509.59798596,0.00027397,30]
[329924836,1718836259635,-210.41,0.00027397,5]
[329924837,1718836259644,-500.0,0.00027397,5]
[329924838,1718836259653,-500.0,0.00027397,5]
[329924839,1718836259662,-500.0,0.00027397,5]
[329924840,1718836259671,-1255.85,0.00027397,5]
[329924841,1718836259680,-500.0,0.00027397,5]
[329924842,1718836259689,-500.0,0.00027397,5]
[329924843,1718836259699,-500.0,0.00027397,5]
[329924844,1718836259708,-219.79905005,0.00027397,2]
[329924845,1718836259717,-3521.25,0.00027397,5]
[329924846,1718836259727,-1301.69,0.00027397,5]
[329924847,1718836259738,-548.2611039,0.00027397,5]
[329924848,1718836259748,-1647.36,0.00027397,5]
[329924849,1718836259758,-500.0,0.00027397,5]
[329924850,1718836259768,-1191.85,0.00027397,5]
[329924851,1718836259778,-785.72,0.00027397,5]
[329924852,1718836259860,-537.68266054,0.00027397,5]
[329924853,1718836259870,-3227.87,0.00027397,5]
[329924854,1718836259879,-1191.51,0.00027397,5]
[329924855,1718836259888,-7407.49,0.00027397,5]
[329924856,1718836259898,-500.0,0.00027397,5]
[329924857,1718836259907,-500.0,0.00027397,5]
[329924858,1718836259917,-907.94,0.00027397,5]
[329924859,1718836259926,-500.0,0.00027397,5]
[329924860,1718836259935,-1802.51,0.00027397,5]
[329924861,1718836259944,-1390.39,0.00027397,5]
[329924862,1718836259954,-3668.23,0.00027397,5]
[329924863,1718836259963,-500.0,0.00027397,5]
[329924864,1718836259972,-2010.64,0.00027397,5]
[329924865,1718836259982,-878.3,0.00027397,5]
[329924866,1718836259991,-512.1,0.00027397,5]
[329924867,1718836260002,-323.2855849,0.00027397,5]
[329924868,1718836260012,-837.93,0.00027397,5]
[329924869,1718836260023,-500.0,0.00027397,5]
[329924870,1718836260033,-500.0,0.00027397,5]
[329924871,1718836260044,-890.45,0.00027397,5]
[329924872,1718836260053,-174.86877295,0.000274,2]
[329924873,1718836260062,-523.70697376,0.00027448,2]
[329924874,1718836260072,-43566.94541164,0.000275,2]
[329924875,1718836260081,-154.82968734,0.000275,30]
[329924876,1718836260090,-156.79447029,0.00027545,2]
[329924877,1718836260099,-523.70697376,0.00027656,2]
[329924878,1718836260111,-210.41,0.00027671,5]
[329924879,1718836260120,-500.0,0.00027671,5]
[329924880,1718836260130,-500.0,0.00027671,5]
[329924881,1718836260140,-500.0,0.00027671,5]
[329924882,1718836260149,-1255.85,0.00027671,5]
[329924883,1718836260159,-500.0,0.00027671,5]
[329924884,1718836260168,-500.0,0.00027671,5]
[329924885,1718836260178,-500.0,0.00027671,5]
[329924886,1718836260187,-3521.25,0.00027671,5]
[329924887,1718836260196,-1301.69,0.00027671,5]
[329924888,1718836260205,-1647.36,0.00027671,5]
[329924889,1718836260214,-500.0,0.00027671,5]
[329924890,1718836260224,-1191.85,0.00027671,5]
[329924891,1718836260233,-785.72,0.00027671,5]
[329924892,1718836260243,-3227.87,0.00027671,5]
[329924893,1718836260253,-1191.51,0.00027671,5]
[329924894,1718836260263,-7407.49,0.00027671,5]
[329924895,1718836260272,-500.0,0.00027671,5]
[329924896,1718836260282,-500.0,0.00027671,5]
[329924897,1718836260292,-907.94,0.00027671,5]
[329924898,1718836260301,-214.00425039,0.00027671,5]
[329924899,1718836260311,-1802.51,0.00027671,5]
[329924900,1718836260320,-1390.39,0.00027671,5]
[329924901,1718836260332,-3668.23,0.00027671,5]
[329924902,1718836260342,-500.0,0.00027671,5]
[329924903,1718836260351,-2010.64,0.00027671,5]
[329924904,1718836260361,-878.3,0.00027671,5]
[329924905,1718836260371,-512.1,0.00027671,5]
[329924906,1718836260380,-837.93,0.00027671,5]
[329924907,1718836260389,-500.0,0.00027671,5]
[329924908,1718836260398,-500.0,0.00027671,5]
[329924909,1718836260407,-184.08379349,0.00027675,2]
[329924910,1718836260416,-151.56363197,0.0002768,2]
[329924911,1718836260426,-156.79447029,0.00027692,2]
[329924912,1718836260435,-151.28629382,0.00027702,2]
[329924913,1718836260445,-523.70697376,0.00027727,2]
[329924914,1718836260455,-153.30180998,0.00027732,2]
[329924915,1718836260464,-523.70697376,0.00027762,2]
[329924916,1718836260473,-184.08379349,0.00027799,2]
[329924917,1718836260483,-523.70697376,0.00027805,2]
[329924918,1718836260492,-184.08379349,0.00027868,2]
[329924919,1718836260502,-210.41,0.00027945,5]
[329924920,1718836260511,-500.0,0.00027945,5]
[329924921,1718836260520,-500.0,0.00027945,5]
[329924922,1718836260529,-500.0,0.00027945,5]
[329924923,1718836260539,-1255.85,0.00027945,5]
[329924924,1718836260548,-500.0,0.00027945,5]
[329924925,1718836260558,-500.0,0.00027945,5]
[329924926,1718836260568,-500.0,0.00027945,5]
[329924927,1718836260577,-3521.25,0.00027945,5]
[329924928,1718836260587,-1301.69,0.00027945,5]
[329924929,1718836260596,-1647.36,0.00027945,5]
[329924930,1718836260608,-211.07569878,0.00027945,5]
[329924931,1718836260618,-1191.85,0.00027945,5]
[329924932,1718836260627,-785.72,0.00027945,5]
[329924933,1718836260636,-3227.87,0.00027945,5]
[329924934,1718836260645,-1191.51,0.00027945,5]
[329924935,1718836260655,-7407.49,0.00027945,5]
[329924936,1718836260664,-500.0,0.00027945,5]
[329924937,1718836260674,-500.0,0.00027945,5]
[329924938,1718836260683,-907.94,0.00027945,5]
[329924939,1718836260692,-1802.51,0.00027945,5]
[329924940,1718836260702,-1390.39,0.00027945,5]
[329924941,1718836260711,-3668.23,0.00027945,5]
[329924942,1718836260721,-500.0,0.00027945,5]
[329924943,1718836260731,-2010.64,0.00027945,5]
[329924944,1718836260745,-878.3,0.00027945,5]
[329924945,1718836260754,-512.1,0.00027945,5]
[329924946,1718836260763,-837.93,0.00027945,5]
[329924947,1718836260772,-500.0,0.00027945,5]
[329924948,1718836260782,-500.0,0.00027945,5]
[329924949,1718836260792,-152.7044776,0.00027988,2]
[329924950,1718836260803,-523.70697376,0.0002799,2]
[329924951,1718836260813,-267.87185097,0.00028,2]
[329924952,1718836260823,-501.0,0.00028,2]
[329924953,1718836260832,-152.7044776,0.00028048,2]
[329924954,1718836260841,-523.70697376,0.00028049,2]
[329924955,1718836260851,-493.0,0.000281,2]
[329924956,1718836260861,-153.30180998,0.00028111,2]
[329924957,1718836260870,-152.7044776,0.00028214,2]
[329924958,1718836260879,-210.41,0.00028219,5]
[329924959,1718836260888,-500.0,0.00028219,5]
[329924960,1718836260897,-500.0,0.00028219,5]
[329924961,1718836260907,-500.0,0.00028219,5]
[329924962,1718836260916,-1255.85,0.00028219,5]
[329924963,1718836260925,-500.0,0.00028219,5]
[329924964,1718836260934,-500.0,0.00028219,5]
[329924965,1718836260944,-500.0,0.00028219,5]
[329924966,1718836260953,-3521.25,0.00028219,5]
[329924967,1718836260963,-1301.69,0.00028219,5]
[329924968,1718836260972,-1647.36,0.00028219,5]
[329924969,1718836260981,-1191.85,0.00028219,5]
[329924970,1718836260989,-785.72,0.00028219,5]
[329924971,1718836260998,-3227.87,0.00028219,5]
[329924972,1718836261009,-1191.51,0.00028219,5]
[329924973,1718836261018,-7407.49,0.00028219,5]
[329924974,1718836261027,-500.0,0.00028219,5]
[329924975,1718836261037,-500.0,0.00028219,5]
[329924976,1718836261046,-907.94,0.00028219,5]
[329924977,1718836261055,-1802.51,0.00028219,5]
[329924978,1718836261065,-1390.39,0.00028219,5]
[329924979,1718836261074,-3668.23,0.00028219,5]
[329924980,1718836261083,-585.7,0.00028219,5]
[329924981,1718836261093,-2010.64,0.00028219,5]
[329924982,1718836261103,-878.3,0.00028219,5]
[329924983,1718836261113,-512.1,0.00028219,5]
[329924984,1718836261122,-837.93,0.00028219,5]
[329924985,1718836261131,-500.0,0.00028219,5]
[329924986,1718836261140,-500.0,0.00028219,5]
[329924987,1718836261150,-184.08379349,0.00028269,2]
[329924988,1718836261159,-151.56363197,0.00028354,2]
[329924989,1718836261170,-184.08379349,0.00028404,2]
[329924990,1718836261181,-243.697482,0.00028421,2]
[329924991,1718836261191,-184.08379349,0.00028485,2]
[329924992,1718836261260,-210.41,0.00028493,5]
[329924993,1718836261275,-500.0,0.00028493,5]
[329924994,1718836261286,-500.0,0.00028493,5]
[329924995,1718836261297,-500.0,0.00028493,5]
[329924996,1718836261307,-1255.85,0.00028493,5]
[329924997,1718836261318,-500.0,0.00028493,5]
[329924998,1718836261329,-500.0,0.00028493,5]
[329924999,1718836261339,-500.0,0.00028493,5]
[329925000,1718836261349,-3521.25,0.00028493,5]
[329925001,1718836261359,-1301.69,0.00028493,5]
[329925002,1718836261368,-1647.36,0.00028493,5]
[329925003,1718836261380,-1191.85,0.00028493,5]
[329925004,1718836261389,-785.72,0.00028493,5]
[329925005,1718836261398,-3227.87,0.00028493,5]
[329925006,1718836261407,-1191.51,0.00028493,5]
[329925007,1718836261415,-7407.49,0.00028493,5]
[329925008,1718836261425,-500.0,0.00028493,5]
[329925009,1718836261436,-500.0,0.00028493,5]
[329925010,1718836261446,-907.94,0.00028493,5]
[329925011,1718836261456,-1802.51,0.00028493,5]
[329925012,1718836261466,-1390.39,0.00028493,5]
[329925013,1718836261476,-3668.23,0.00028493,5]
[329925014,1718836261487,-2010.64,0.00028493,5]
[329925015,1718836261498,-878.3,0.00028493,5]
[329925016,1718836261509,-512.1,0.00028493,5]
[329925017,1718836261519,-837.93,0.00028493,5]
[329925018,1718836261530,-500.0,0.00028493,5]
[329925019,1718836261541,-500.0,0.00028493,5]
[329925020,1718836261552,-523.70697376,0.00028533,2]
[329925021,1718836261562,-523.70697376,0.0002856,2]
[329925022,1718836261572,-156.79447029,0.00028592,2]
[329925023,1718836261581,-184.08379349,0.0002869,2]
[329925024,1718836261592,-210.41,0.00028767,5]
[329925025,1718836261601,-500.0,0.00028767,5]
[329925026,1718836261613,-500.0,0.00028767,5]
[329925027,1718836261622,-500.0,0.00028767,5]
[329925028,1718836261631,-1255.85,0.00028767,5]
[329925029,1718836261641,-500.0,0.00028767,5]
[329925030,1718836261652,-645.67220235,0.00028767,5]
[329925031,1718836261662,-463.45403431,0.00028767,5]
[329925032,1718836261671,-3521.25,0.00028767,5]
[329925033,1718836261681,-1301.69,0.00028767,5]
[329925034,1718836261690,-1647.36,0.00028767,5]
[329925035,1718836261698,-1191.85,0.00028767,5]
[329925036,1718836261707,-785.72,0.00028767,5]
[329925037,1718836261717,-3227.87,0.00028767,5]
[329925038,1718836261727,-1191.51,0.00028767,5]
[329925039,1718836261737,-7407.49,0.00028767,5]
[329925040,1718836261749,-500.0,0.00028767,5]
[329925041,1718836261759,-500.0,0.00028767,5]
[329925042,1718836261768,-907.94,0.00028767,5]
[329925043,1718836261778,-1802.51,0.00028767,5]
[329925044,1718836261788,-1390.39,0.00028767,5]
[329925045,1718836261800,-2951.81797763,0.00028767,5]
[329925046,1718836261882,-716.41202237,0.00028767,5]
[329925047,1718836261893,-13.03993334,0.00028767,5]
[329925048,1718836261915,-500.0,0.00026027,5]
[329925049,1718836261924,-418.64713147,0.00027671,5]
[329925060,1718836915105,273.37336231,9.9e-05,2]
[329925061,1718836923047,164.87683943,9.9e-05,2]
[329925062,1718836923085,108.49652288,9.9e-05,2]
[329925063,1718837114265,535.0,0.00026,60]
[329925064,1718837149684,500.70428638,0.00026,60]
[329925065,1718837227269,-539.59557086,0.00019,2]
[329925066,1718837227291,-293.393844,0.00021096,2]
[329925067,1718837227317,-388.62660838,0.00023351,2]
[329925068,1718837233102,-218.7235122,0.00023351,2]
[329925075,1718837373123,-235.14628355,0.000179,2]
[329925117,1718837432952,-1560.05833241,0.000179,2]
[329925119,1718837432961,-205.0,0.00017998,2]
[329925121,1718837432971,-35497.60839096,0.00017999,2]
[329925123,1718837432980,-31136.89614257,0.00018,2]
[329925125,1718837432991,-316.23475701,0.00018,2]
[329925621,1718837439108,-3294.85015422,0.00018,2]
[329925622,1718837439118,-500.0,0.00019178,2]
[329925623,1718837439129,-310.06537508,0.00019178,2]
[329925624,1718837439139,-497.08857443,0.00019178,2]
[329925625,1718837439149,-155.25105694,0.00023448,2]
[329925626,1718837439159,-24900.0,0.00023451,2]
[329925627,1718837439169,-153.0,0.00023515,2]
[329925628,1718837439182,-658.62108298,0.000239,2]
[329925629,1718837439192,-764.9,0.00023957,5]
[329925630,1718837439202,-243.31848671,0.00024557,2]
[329925631,1718837439212,-10406.12197036,0.00024648,2]
[329925632,1718837439223,-544.96078928,0.00024656,2]
[329925633,1718837439232,-500.0,0.00024657,5]
[329925634,1718837439243,-500.0,0.00024657,5]
[329925635,1718837439253,-500.0,0.00024657,5]
[329925636,1718837439265,-525.45222054,0.00024657,5]
[329925637,1718837439276,-500.0,0.00024657,5]
[329925638,1718837439286,-500.0,0.00024657,5]
[329925639,1718837439296,-500.0,0.00024657,5]
[329925640,1718837439306,-500.0,0.00024657,5]
[329925641,1718837439316,-500.0,0.00024657,5]
[329925642,1718837439326,-511.25249507,0.00024657,5]
[329925643,1718837439336,-500.0,0.00024657,5]
[329925644,1718837439346,-500.0,0.00024657,5]
[329925645,1718837439355,-500.0,0.00024657,5]
[329925646,1718837439364,-500.0,0.00024657,5]
[329925647,1718837439374,-500.0,0.00024657,5]
[329925648,1718837439383,-500.0,0.00024657,5]
[329925649,1718837439394,-500.0,0.00024657,5]
[329925650,1718837439403,-500.0,0.00024657,5]
[329925651,1718837439412,-500.0,0.00024657,5]
[329925652,1718837439422,-500.0,0.00024657,5]
[329925653,1718837439431,-500.0,0.00024657,5]
[329925654,1718837439442,-500.0,0.00024657,5]
[329925655,1718837439452,-500.0,0.00024657,5]
[329925656,1718837439461,-500.0,0.00024657,5]
[329925657,1718837439470,-500.0,0.00024657,5]
[329925658,1718837439479,-505.55114002,0.00024657,5]
[329925659,1718837439489,-670.05,0.00024657,5]
[329925660,1718837439498,-500.0,0.00024657,5]
[329925661,1718837439627,-500.0,0.00024657,5]
[329925662,1718837439636,-284.31371648,0.00024657,5]
[329925663,1718837439647,-2514.45,0.00024657,5]
[329925664,1718837439656,-700.7,0.00024657,5]
[329925665,1718837439665,-500.0,0.00024657,5]
[329925666,1718837439675,-500.0,0.00024657,5]
[329925667,1718837439684,-1178.62,0.00024657,5]
[329925668,1718837439694,-500.0,0.00024657,5]
[329925669,1718837439704,-500.0,0.00024657,5]
[329925670,1718837439713,-500.0,0.00024657,5]
[329925671,1718837439722,-500.0,0.00024657,5]
[329925672,1718837439731,-500.0,0.00024657,5]
[329925673,1718837439741,-500.0,0.00024657,5]
[329925674,1718837439750,-500.0,0.00024657,5]
[329925675,1718837439759,-500.0,0.00024657,5]
[329925676,1718837439768,-500.0,0.00024657,5]
[329925677,1718837439777,-500.0,0.00024657,5]
[329925678,1718837439787,-500.0,0.00024657,5]
[329925679,1718837439796,-500.0,0.00024657,5]
[329925680,1718837439806,-558.6,0.00024657,5]
[329925681,1718837439816,-500.0,0.00024657,5]
[329925682,1718837439825,-500.0,0.00024657,5]
[329925683,1718837439835,-878.32,0.00024657,5]
[329925684,1718837439845,-500.0,0.00024657,5]
[329925685,1718837439853,-500.0,0.00024657,5]
[329925686,1718837439863,-500.0,0.00024657,5]
[329925687,1718837439872,-320.18843397,0.00024657,5]
[329925688,1718837439881,-500.0,0.00024657,5]
[329925689,1718837439891,-391.22740072,0.00024657,5]
[329925690,1718837439900,-500.0,0.00024657,5]
[329925691,1718837439910,-500.0,0.00024657,5]
[329925692,1718837439919,-500.0,0.00024657,5]
[329925693,1718837439929,-1222.75,0.00024657,5]
[329925694,1718837439938,-500.0,0.00024657,5]
[329925695,1718837439948,-500.0,0.00024657,5]
[329925696,1718837439957,-505.75721366,0.00024657,5]
[329925697,1718837439967,-500.0,0.00024657,5]
[329925698,1718837439977,-500.0,0.00024657,5]
[329925699,1718837439986,-500.0,0.00024657,5]
[329925700,1718837439995,-500.0,0.00024657,5]
[329925701,1718837440004,-500.0,0.00024657,5]
[329925702,1718837440014,-200.0,0.00024657,5]
[329925703,1718837440023,-500.0,0.00024657,5]
[329925704,1718837440033,-500.0,0.00024657,5]
[329925705,1718837440042,-406.40170903,0.00024657,5]
[329925706,1718837440052,-500.0,0.00024657,5]
[329925707,1718837440062,-500.0,0.00024657,5]
[329925708,1718837440071,-500.0,0.00024657,5]
[329925709,1718837440081,-500.0,0.00024657,5]
[329925710,1718837440090,-500.0,0.00024657,5]
[329925711,1718837440104,-500.0,0.00024657,5]
[329925712,1718837440113,-500.0,0.00024657,5]
[329925713,1718837440122,-500.0,0.00024657,5]
[329925714,1718837440131,-500.0,0.00024657,5]
[329925715,1718837440142,-509.49331624,0.00024657,5]
[329925716,1718837440151,-500.0,0.00024657,5]
[329925717,1718837440160,-500.0,0.00024657,5]
[329925718,1718837440170,-500.0,0.00024657,5]
[329925719,1718837440182,-500.0,0.00024657,5]
[329925720,1718837440191,-577.12778958,0.00024657,5]
[329925721,1718837440200,-500.0,0.00024657,5]
[329925722,1718837440210,-500.0,0.00024657,5]
[329925723,1718837440219,-196.82917745,0.00024657,5]
[329925724,1718837440228,-361.51694255,0.00024657,5]
[329925725,1718837440239,-500.0,0.00024657,5]
[329925726,1718837440248,-250.0,0.00024657,5]
[329925727,1718837440258,-1313.92,0.00024657,5]
[329925728,1718837440268,-500.0,0.00024657,5]
[329925729,1718837440278,-500.0,0.00024657,5]
[329925730,1718837440287,-500.0,0.00024657,5]
[329925731,1718837440296,-500.0,0.00024657,5]
[329925732,1718837440306,-500.0,0.00024657,5]
[329925733,1718837440316,-500.0,0.00024657,5]
[329925734,1718837440325,-500.0,0.00024657,5]
[329925735,1718837440336,-500.0,0.00024657,5]
[329925736,1718837440346,-151.56363198,0.00024715,2]
[329925737,1718837440356,-192.02589038,0.00024877,2]
[329925738,1718837440366,-151.59841818,0.00024886,2]
[329925739,1718837440376,-489.77886636,0.00024928,2]
[329925740,1718837440385,-237.02244415,0.00024928,2]
[329925741,1718837440395,-524.9323134,0.00024929,2]
[329925742,1718837440404,-500.0,0.0002493,5]
[329925743,1718837440414,-500.0,0.00024931,5]
[329925744,1718837440423,-500.0,0.00024931,5]
[329925745,1718837440432,-500.0,0.00024931,5]
[329925746,1718837440443,-500.0,0.00024931,5]
[329925747,1718837440453,-291.68716819,0.00024931,5]
[329925748,1718837440464,-481.55375942,0.00024931,5]
[329925749,1718837440474,-500.0,0.00024931,5]
[329925750,1718837440484,-500.0,0.00024931,5]
[329925751,1718837440493,-500.0,0.00024931,5]
[329925752,1718837440503,-299.74606996,0.00024931,5]
[329925753,1718837440516,-500.0,0.00024931,5]
[329925754,1718837440524,-500.0,0.00024931,5]
[329925755,1718837440533,-330.67433757,0.00024931,5]
[329925756,1718837440543,-500.0,0.00024931,5]
[329925757,1718837440552,-500.0,0.00024931,5]
[329925758,1718837440562,-177.18270976,0.00024931,5]
[329925759,1718837440571,-670.05,0.00024931,5]
[329925760,1718837440580,-2514.45,0.00024931,5]
[329925761,1718837440590,-700.7,0.00024931,5]
[329925762,1718837440600,-500.0,0.00024931,5]
[329925763,1718837440609,-1178.62,0.00024931,5]
[329925764,1718837440618,-500.0,0.00024931,5]
[329925765,1718837440627,-500.0,0.00024931,5]
[329925766,1718837440637,-500.0,0.00024931,5]
[329925767,1718837440647,-500.0,0.00024931,5]
[329925768,1718837440656,-500.0,0.00024931,5]
[329925769,1718837440666,-500.0,0.00024931,5]
[329925770,1718837440676,-500.0,0.00024931,5]
[329925771,1718837440685,-500.0,0.00024931,5]
[329925772,1718837440695,-500.0,0.00024931,5]
[329925773,1718837440704,-558.6,0.00024931,5]
[329925774,1718837440714,-500.0,0.00024931,5]
[329925775,1718837440724,-500.0,0.00024931,5]
[329925777,1718837440734,-878.32,0.00024931,5]
[329925779,1718837440743,-500.0,0.00024931,5]
[329925782,1718837440752,-500.0,0.00024931,5]
[329925784,1718837440761,-1222.75,0.00024931,5]
[329925786,1718837440771,-500.0,0.00024931,5]
[329925789,1718837440782,-500.0,0.00024931,5]
[329925792,1718837440791,-500.0,0.00024931,5]
[329925794,1718837440802,-500.0,0.00024931,5]
[329925796,1718837440812,-500.0,0.00024931,5]
[329925798,1718837440823,-500.0,0.00024931,5]
[329925800,1718837440832,-200.0,0.00024931,5]
[329925802,1718837440841,-500.0,0.00024931,5]
[329925804,1718837440851,-500.0,0.00024931,5]
[329925806,1718837440859,-70.40158546,0.00024931,5]
[329925868,1718837441479,-500.0,0.00024657,5]
[329925870,1718837441488,-429.59841454,0.00024931,5]
[329925872,1718837441497,-500.0,0.00024931,5]
[329925874,1718837441507,-500.0,0.00024931,5]
[329925876,1718837441516,-500.0,0.00024931,5]
[329925878,1718837441524,-500.0,0.00024931,5]
[329925880,1718837441533,-500.0,0.00024931,5]
[329925882,1718837441542,-500.0,0.00024931,5]
[329925884,1718837441551,-500.0,0.00024931,5]
[329925886,1718837441560,-500.0,0.00024931,5]
[329925888,1718837441569,-500.0,0.00024931,5]
[329925890,1718837441579,-500.0,0.00024931,5]
[329925892,1718837441588,-500.0,0.00024931,5]
[329925894,1718837441597,-500.0,0.00024931,5]
[329925896,1718837441607,-1313.92,0.00024931,5]
[329925898,1718837441616,-539.87519389,0.00024931,5]
[329925900,1718837441626,-181.18,0.00024931,5]
[329925902,1718837441636,-500.0,0.00024931,5]
[329925904,1718837441646,-500.0,0.00024931,5]
[329925906,1718837441655,-500.0,0.00024931,5]
[329925908,1718837441665,-500.0,0.00024931,5]
[329925910,1718837441674,-363.72337556,0.00024931,5]
[329925912,1718837441684,-500.0,0.00024931,5]
[329925914,1718837441694,-158.68247426,0.00024973,2]
[329925916,1718837441704,-175.4208487,0.00025085,2]
[329925918,1718837441714,-500.0,0.00025205,5]
[329925920,1718837441724,-609.85714407,0.00025205,5]
[329925922,1718837441735,-500.0,0.00025205,5]
[329925924,1718837441744,-670.05,0.00025205,5]
[329925926,1718837441754,-2514.45,0.00025205,5]
[329925928,1718837441764,-700.7,0.00025205,5]
[329925930,1718837441773,-1178.62,0.00025205,5]
[329925932,1718837441783,-500.0,0.00025205,5]
[329925934,1718837441792,-500.0,0.00025205,5]
[329925936,1718837441801,-500.0,0.00025205,5]
[329925938,1718837441810,-558.6,0.00025205,5]
[329925940,1718837441819,-500.0,0.00025205,5]
[329925942,1718837441828,-846.66394164,0.00025205,5]
[329925945,1718837441840,-31.65605836,0.00025205,5]
[329925946,1718837441849,-564.95764161,0.00025205,5]
[329926137,1718837444232,-657.79235839,0.00025205,5]
[329926139,1718837444241,-500.0,0.00025205,5]
[329926140,1718837444251,-200.0,0.00025205,5]
[329926141,1718837444260,-500.0,0.00025205,5]
[329926142,1718837444270,-500.0,0.00025205,5]
[329926143,1718837444279,-500.0,0.00025205,5]
[329926144,1718837444289,-500.0,0.00025205,5]
[329926146,1718837444298,-500.0,0.00025205,5]
[329926147,1718837444307,-500.0,0.00025205,5]
[329926149,1718837444316,-500.0,0.00025205,5]
[329926151,1718837444326,-446.61040556,0.00025205,5]
[329926153,1718837444335,-500.0,0.00025205,5]
[329926155,1718837444345,-1313.92,0.00025205,5]
[329926157,1718837444355,-500.0,0.00025205,5]
[329926159,1718837444364,-500.0,0.00025205,5]
[329926161,1718837444373,-500.0,0.00025205,5]
[329926162,1718837444383,-500.0,0.00025205,5]
[329926164,1718837444392,-500.0,0.00025205,5]
[329926166,1718837444403,-243.31848668,0.00025242,2]
[329926168,1718837444413,-151.56363198,0.00025389,2]
[329926170,1718837444422,-192.02589038,0.00025405,2]
[329926172,1718837444431,-277.28260421,0.00025478,5]
[329926173,1718837444440,-500.0,0.00025479,5]
[329926174,1718837444449,-500.0,0.00025479,5]
[329926175,1718837444458,-670.05,0.00025479,5]
[329926176,1718837444468,-2514.45,0.00025479,5]
[329926177,1718837444477,-700.7,0.00025479,5]
[329926178,1718837444486,-1178.62,0.00025479,5]
[329926179,1718837444495,-621.26770092,0.00025479,5]
[329926180,1718837444504,-500.0,0.00025479,5]
[329926181,1718837444514,-500.0,0.00025479,5]
[329926182,1718837444523,-558.6,0.00025479,5]
[329926183,1718837444533,-500.0,0.00025479,5]
[329926184,1718837444542,-878.32,0.00025479,5]
[329926185,1718837444562,-1222.75,0.00025479,5]
[329926186,1718837444573,-385.42,0.00025479,5]
[329926187,1718837444583,-200.0,0.00025479,5]
[329926188,1718837444592,-500.0,0.00025479,5]
[329926189,1718837444602,-419.08615688,0.00025479,5]
[329926190,1718837444611,-500.0,0.00025479,5]
[329926191,1718837444621,-500.0,0.00025479,5]
[329926192,1718837444630,-500.0,0.00025479,5]
[329926194,1718837444640,-500.0,0.00025479,5]
[329926196,1718837444651,-500.0,0.00025479,5]
[329926198,1718837444660,-1313.92,0.00025479,5]
[329926200,1718837444670,-500.0,0.00025479,5]
[329926202,1718837444679,-500.0,0.00025479,5]
[329926204,1718837444689,-590.819052,0.00025479,5]
[329926206,1718837444698,-500.0,0.00025479,5]
[329926208,1718837444708,-500.0,0.00025479,5]
[329926210,1718837444718,-151.28629382,0.00025503,2]